bitfinex-derivatives/quotes_BNBF0:USTF0_20250303
["timestamp","ask_amount","ask_price","bid_price","bid_amount"]
[1741031858390,1.066,573.13,572.35,0.29908378]
[1741031858692,1.066,573.13,572.36,0.29908378]
[1741031858884,1.066,573.13,572.37,0.29908378]
[1741031859082,1.066,573.13,572.36,0.34943042]
[1741031859083,1.066,573.13,572.38,0.29908378]
[1741031859283,1.066,573.13,572.36,0.34943042]
[1741031859487,1.066,573.13,572.37,0.29912154]
[1741031860488,1.066,573.13,572.38,0.29912154]
[1741031860686,1.066,573.13,572.39,0.29912154]
[1741031860888,1.066,573.13,572.36,0.34943042]
[1741031861093,1.066,573.13,572.37,0.29913225]
[1741031862397,1.066,573.13,572.36,0.34943042]
[1741031863295,1.82359671,573.12,572.36,0.34943042]
[1741031863893,1.171,573.14,572.36,0.34943042]
[1741031864994,1.171,573.14,572.37,0.2994623]
[1741031865199,1.171,573.14,572.36,0.34943042]
[1741031865396,1.171,573.14,572.37,0.2994346]
[1741031865698,1.171,573.14,572.27,0.2994346]
[1741031865901,0.34896096,573.13,572.27,0.2994346]
[1741031866300,0.34896096,573.13,572.28,0.2994346]
[1741031866492,0.34896096,573.13,572.29,0.2994346]
[1741031866696,1.201,573.12,572.29,0.2994346]
[1741031866900,1.201,573.12,572.3,0.2994346]
[1741031867293,1.201,573.12,572.31,0.64889555]
[1741031867497,1.201,573.12,572.32,0.2994346]
[1741031867700,1.201,573.12,572.33,0.2994346]
[1741031867900,1.201,573.12,572.34,0.2994346]
[1741031868097,1.201,573.12,572.35,0.2994346]
[1741031868300,1.201,573.12,572.36,0.2994346]
[1741031868494,1.201,573.12,572.37,0.2994346]
[1741031868795,1.201,573.12,572.38,0.2994346]
[1741031869002,1.201,573.12,572.39,0.2994346]
[1741031869397,1.201,573.12,572.4,0.2994346]
[1741031869595,1.201,573.12,572.41,0.2994346]
[1741031869800,1.201,573.12,572.42,0.2994346]
[1741031869994,1.201,573.12,572.43,0.2994346]
[1741031870197,1.201,573.12,572.44,0.2994346]
[1741031870400,1.201,573.12,572.45,0.2994346]
[1741031870595,1.201,573.12,572.46,0.2994346]
[1741031870800,1.201,573.12,572.47,0.2994346]
[1741031870997,1.201,573.12,572.48,0.2994346]
[1741031871194,1.201,573.12,572.49,0.2994346]
[1741031871397,1.201,573.12,572.5,0.2994346]
[1741031871597,1.201,573.12,572.51,0.2994346]
[1741031871801,1.201,573.12,572.35,1.25038166]
[1741031872095,1.201,573.12,572.36,0.29865846]
[1741031872301,1.201,573.12,572.37,0.29865846]
[1741031872502,1.201,573.12,572.38,0.29865846]
[1741031872701,1.201,573.12,572.39,0.29865846]
[1741031872897,1.201,573.12,572.4,0.29865846]
[1741031873101,1.201,573.12,572.41,0.29865846]
[1741031873295,1.201,573.12,572.42,0.29865846]
[1741031873595,1.201,573.12,572.43,0.29865846]
[1741031873799,1.201,573.12,572.44,0.29865846]
[1741031874006,1.201,573.12,572.45,0.29865846]
[1741031874304,1.201,573.12,572.46,0.29865846]
[1741031874603,1.201,573.12,572.47,0.29865846]
[1741031874802,1.201,573.12,572.48,0.29865846]
[1741031875103,1.201,573.12,572.31,1.18446095]
[1741031875104,1.201,573.12,572.49,0.29865846]
[1741031875298,1.201,573.12,572.5,0.29865846]
[1741031875499,1.201,573.12,572.51,0.29865846]
[1741031875701,1.201,573.12,572.52,0.29865846]
[1741031875902,1.201,573.12,572.53,0.29865846]
[1741031876204,1.201,573.12,572.54,0.29865846]
[1741031876400,1.201,573.12,572.31,1.18446095]
[1741031876703,1.201,573.12,572.57,1.25038166]
[1741031876903,0.36966614,573.12,572.58,0.29829857]
[1741031877105,0.36966614,573.12,572.59,0.29829857]
[1741031877307,3.39024385,576.02,572.6,0.29829857]
[1741031877500,1.81949685,575.48,572.61,0.29829857]
[1741031877704,0.34731266,575.85,572.62,0.29829857]
[1741031878005,0.31962552,575.84,572.63,0.29829857]
[1741031878201,0.31971841,575.83,572.64,0.29825182]
[1741031878405,1.50071841,575.83,572.64,0.29825182]
[1741031878604,1.181,575.83,572.65,0.29825182]
[1741031878911,2.1374333,575.82,572.92,1.25038166]
[1741031879104,0.31971841,575.81,572.93,0.29825182]
[1741031879310,0.31971841,575.81,572.94,0.29825182]
[1741031879510,0.31971841,575.81,572.95,0.29825182]
[1741031879704,0.31980827,575.8,572.96,0.29834149]
[1741031879905,0.31980827,575.8,572.92,1.25038166]
[1741031879906,2.0602597,575.81,572.97,0.29834149]
[1741031880110,0.31980827,575.8,572.98,0.29834149]
[1741031880311,0.31980827,575.79,572.99,0.29834149]
[1741031880605,0.31980827,575.78,573.0,0.29834149]
[1741031880805,0.31980827,575.78,573.01,0.29834149]
[1741031881204,0.31980827,575.78,573.02,0.29834149]
[1741031881409,0.31980827,575.78,573.03,0.29834149]
[1741031881710,0.31980827,575.78,573.02,1.81705842]
[1741031881711,1.81711377,575.77,573.04,0.29834149]
[1741031881907,1.81711377,575.77,573.05,0.29834149]
[1741031882207,1.81711377,575.77,573.03,0.831]
[1741031882208,1.81711377,575.77,573.06,0.29834149]
[1741031882404,1.81711377,575.77,573.07,0.29811215]
[1741031882608,1.81711377,575.77,573.08,0.29811215]
[1741031882909,1.81711377,575.77,573.03,0.831]
[1741031882910,1.81711377,575.77,573.09,0.29811215]
[1741031883110,1.81711377,575.77,573.1,0.29811215]
[1741031883311,1.81711377,575.77,573.11,0.29811215]
[1741031883510,1.81711377,575.77,573.12,0.29811215]
[1741031883707,1.81711377,575.77,573.13,0.29811215]
[1741031883913,1.81711377,575.77,573.14,0.29811215]
[1741031884113,1.347,575.79,573.15,0.29811215]
[1741031884310,1.347,575.79,573.16,0.29811215]
[1741031884611,1.347,575.79,573.17,0.29811215]
[1741031884812,1.347,575.79,573.18,0.29811215]
[1741031885011,1.347,575.79,573.19,0.29811215]
[1741031885213,1.347,575.79,573.2,0.29811215]
[1741031885414,1.347,575.79,573.21,0.29811215]
[1741031885613,1.347,575.79,573.33,0.34883923]
[1741031885814,1.347,575.79,573.34,0.29811215]
[1741031886010,1.347,575.79,573.46,0.34876015]
[1741031886214,1.347,575.79,573.47,0.29811215]
[1741031886417,1.347,575.79,573.48,0.29811215]
[1741031886715,1.347,575.79,573.49,0.29764745]
[1741031886915,1.347,575.79,573.5,0.29764745]
[1741031887115,1.347,575.79,573.51,0.29764745]
[1741031887316,1.347,575.79,573.52,0.29764745]
[1741031887516,1.347,575.79,573.53,0.29764745]
[1741031887716,1.347,575.79,573.54,0.29764745]
[1741031887912,1.347,575.79,573.55,0.29764745]
[1741031888115,1.347,575.79,573.52,0.074]
[1741031888116,1.347,575.79,573.56,0.29764745]
[1741031888315,1.347,575.79,573.57,0.29764745]
[1741031888511,1.347,575.79,573.58,0.29764745]
[1741031888717,1.347,575.79,573.59,0.29764745]
[1741031888913,1.347,575.79,573.52,0.074]
[1741031889116,1.347,575.79,573.53,0.29772431]
[1741031889316,1.347,575.79,573.54,0.29772431]
[1741031889515,1.347,575.79,573.55,0.29772431]
[1741031889717,1.347,575.79,573.56,0.29772431]
[1741031890019,1.347,575.79,573.57,0.29772431]
[1741031890218,1.347,575.79,573.58,0.29772431]
[1741031890419,1.347,575.79,573.52,0.074]
[1741031890420,1.347,575.79,573.59,0.29772431]
[1741031890721,1.347,575.79,573.6,0.29784868]
[1741031890913,1.347,575.79,573.61,0.29784868]
[1741031891121,1.347,575.79,573.62,0.29784868]
[1741031891316,1.347,575.79,573.63,0.29784868]
[1741031891520,1.347,575.79,573.64,0.29784868]
[1741031891719,1.347,575.79,573.65,0.29765344]
[1741031891916,1.347,575.79,573.66,0.29765344]
[1741031892220,1.347,575.79,573.52,0.074]
[1741031892416,1.347,575.79,573.53,0.29764624]
[1741031892619,1.347,575.79,573.54,0.29764624]
[1741031892820,1.347,575.79,573.55,0.29764624]
[1741031893020,1.347,575.79,573.56,0.29764624]
[1741031893221,1.347,575.79,573.57,0.29764624]
[1741031893418,1.347,575.79,573.58,0.29764624]
[1741031893615,1.347,575.79,573.59,0.29754002]
[1741031893921,1.347,575.79,573.6,0.29754002]
[1741031894220,1.347,575.79,573.61,0.29754002]
[1741031894416,1.347,575.79,573.62,0.29754002]
[1741031894623,1.347,575.79,573.63,0.29754002]
[1741031894915,1.347,575.79,573.64,0.29754002]
[1741031895116,1.347,575.79,573.65,0.29754002]
[1741031895325,1.347,575.79,573.66,0.29772128]
[1741031895518,1.181,575.83,573.67,0.29772128]
[1741031895717,1.181,575.83,573.68,0.29772128]
[1741031895923,1.181,575.83,573.69,0.29772128]
[1741031896123,1.181,575.83,573.7,0.29772128]
[1741031896421,1.181,575.83,573.71,0.29772128]
[1741031896623,1.181,575.83,573.72,0.29772128]
[1741031897021,1.181,575.83,573.73,0.29772128]
[1741031897223,1.181,575.83,573.74,0.29772128]
[1741031897423,1.181,575.83,573.75,0.29772128]
[1741031897619,1.181,575.83,573.76,0.29772128]
[1741031897815,1.181,575.83,573.77,0.29772128]
[1741031898022,1.181,575.83,573.78,0.29772128]
[1741031898321,1.181,575.83,573.79,0.29769883]
[1741031898621,1.181,575.83,573.8,0.29769883]
[1741031898819,2.068,575.83,573.81,0.29769883]
[1741031899020,2.068,575.83,573.82,0.29769883]
[1741031899226,2.068,575.83,573.83,0.29769883]
[1741031899423,2.068,575.83,573.84,0.29769883]
[1741031899823,2.068,575.83,573.85,0.29769883]
[1741031900018,2.068,575.83,573.86,0.29769883]
[1741031900228,2.068,575.83,573.52,0.074]
[1741031900525,2.068,575.83,573.53,0.2976113]
[1741031900726,2.068,575.83,573.54,0.2976113]
[1741031900927,2.068,575.83,573.55,0.2976113]
[1741031901122,2.068,575.83,573.56,0.2976113]
[1741031901320,2.068,575.83,573.57,0.2976113]
[1741031901525,2.068,575.83,573.58,0.2976113]
[1741031901721,2.068,575.83,573.59,0.2976113]
[1741031901922,2.068,575.83,573.6,0.2976113]
[1741031902124,2.068,575.83,573.61,0.2976113]
[1741031902319,2.068,575.83,573.62,0.2976113]
[1741031902527,2.068,575.83,573.63,0.2976113]
[1741031902731,2.068,575.83,573.64,0.2976113]
[1741031902926,2.068,575.83,573.65,0.29761792]
[1741031903125,2.068,575.83,573.66,0.29761792]
[1741031903320,2.068,575.83,573.67,0.29761792]
[1741031903628,2.068,575.83,573.68,0.29761792]
[1741031903829,2.068,575.83,573.69,0.29761792]
[1741031904125,2.068,575.83,573.7,0.29761792]
[1741031904323,2.068,575.83,573.71,0.29761792]
[1741031904826,2.068,575.83,573.72,0.37161792]
[1741031905029,2.068,575.83,573.73,0.29761792]
[1741031905228,2.068,575.83,573.74,1.54799958]
[1741031905427,2.068,575.83,573.75,0.29761792]
[1741031905627,2.068,575.83,573.76,0.29761792]
[1741031905828,2.068,575.83,573.74,1.25038166]
[1741031906026,2.068,575.83,573.77,0.29780544]
[1741031906227,2.068,575.83,573.78,0.29780544]
[1741031906427,2.068,575.83,573.79,0.29780544]
[1741031906724,2.068,575.83,573.8,0.29780544]
[1741031907023,2.068,575.83,573.81,0.29780544]
[1741031907222,2.068,575.83,573.82,0.29780544]
[1741031907425,2.068,575.83,573.83,0.2978901]
[1741031907626,2.068,575.83,573.84,0.2978901]
[1741031907927,2.068,575.83,573.85,0.2978901]
[1741031908129,2.068,575.83,573.86,0.2978901]
[1741031908324,2.068,575.83,573.87,0.2978901]
[1741031908531,0.34733076,575.82,573.87,0.2978901]
[1741031908731,0.34733076,575.82,573.88,0.2978901]
[1741031909232,0.31959778,575.81,573.89,0.2978901]
[1741031909630,0.31959778,575.81,573.9,0.2978901]
[1741031909830,0.31959778,575.81,573.91,0.2978901]
[1741031910029,0.31959778,575.81,573.92,0.2978901]
[1741031910030,0.908,575.8,573.92,0.2978901]
[1741031910230,0.31959778,575.79,573.93,0.2978901]
[1741031910525,0.31981365,575.78,573.88,1.25038166]
[1741031910730,0.31981365,575.77,573.89,0.29834707]
[1741031910928,0.31981365,575.79,573.89,0.29834707]
[1741031911435,1.81690821,575.76,573.89,0.29834707]
[1741031911633,0.31981365,575.75,573.89,0.29834707]
[1741031912230,0.31981365,575.75,573.79,0.983]
[1741031912231,0.31981365,575.75,573.9,0.29834707]
[1741031912430,0.31981365,575.75,573.8,0.29834707]
[1741031912732,0.31981365,575.75,573.81,0.29834707]
[1741031912933,0.31981365,575.75,573.82,0.29834707]
[1741031913130,0.31981365,575.75,573.83,0.29834707]
[1741031913330,0.31981365,575.75,573.84,0.29834707]
[1741031913635,0.31981365,575.75,573.85,0.29834707]
[1741031913835,0.31981365,575.75,573.86,0.29834707]
[1741031914036,0.31981365,575.75,573.87,0.29834707]
[1741031914237,0.31981365,575.75,573.88,0.29834707]
[1741031914434,0.31981365,575.75,573.89,0.29834707]
[1741031914629,0.31981365,575.74,573.9,0.29834707]
[1741031914833,0.31981365,575.74,573.79,0.983]
[1741031914834,0.31981365,575.73,573.91,0.29834707]
[1741031915035,0.31989262,575.72,573.92,0.29842476]
[1741031915331,0.31989262,575.71,573.93,0.29842476]
[1741031915634,0.31989262,575.7,573.94,0.29842476]
[1741031915835,0.31989262,575.69,573.95,0.29842476]
[1741031916031,0.31989262,575.68,573.96,0.29842476]
[1741031916235,0.31989262,575.75,573.8,0.29842476]
[1741031916433,1.81690821,575.76,573.79,0.983]
[1741031916632,0.31985347,575.75,573.8,0.29838595]
[1741031917133,0.31985347,575.74,573.81,0.34854742]
[1741031917434,0.31985347,575.73,573.82,0.29838595]
[1741031917633,0.31985347,575.72,573.82,0.29838595]
[1741031917833,0.31985347,575.71,573.82,0.29838595]
[1741031918028,0.32004047,575.7,573.83,0.29857122]
[1741031918235,0.32004047,575.69,573.82,0.29863817]
[1741031918434,0.32004047,575.69,573.79,0.983]
[1741031918629,1.81690821,575.76,573.79,0.983]
[1741031918630,0.32004047,575.68,573.79,0.983]
[1741031918834,0.32004047,575.67,573.79,0.983]
[1741031919033,0.32004047,575.66,573.8,0.29869599]
[1741031919337,0.32004047,575.65,573.79,0.983]
[1741031919738,0.32004047,575.64,573.79,0.983]
[1741031919939,0.32004047,575.63,573.79,0.983]
[1741031920133,0.32004047,575.62,573.79,0.983]
[1741031920442,0.32004047,575.61,573.79,0.983]
[1741031920633,0.32004047,575.6,573.79,0.983]
[1741031920831,0.32004047,575.59,573.79,0.983]
[1741031921139,0.32017797,575.58,573.79,0.983]
[1741031921438,0.32017797,575.57,573.79,0.983]
[1741031921634,0.32017797,575.56,573.79,0.983]
[1741031921840,0.32017797,575.55,573.79,0.983]
[1741031922044,0.32017797,575.54,573.79,0.983]
[1741031922238,0.32017797,575.53,573.79,0.983]
[1741031922438,7.91557539,575.6,573.79,0.983]
[1741031922634,0.32032234,575.52,573.79,0.983]
[1741031922834,0.32032234,575.51,573.79,0.983]
[1741031923034,0.32032234,575.5,573.79,0.983]
[1741031923239,1.62237938,575.45,573.79,0.983]
[1741031923438,1.62237938,575.41,573.79,0.983]
[1741031923636,1.95103573,575.4,573.79,0.983]
[1741031924034,4.95468471,575.41,573.79,0.983]
[1741031924234,1.62527978,575.22,573.79,0.983]
[1741031924543,1.63071339,575.09,573.79,0.983]
[1741031924735,0.32047044,575.08,573.79,0.983]
[1741031924939,1.63071339,575.09,573.79,0.983]
[1741031924940,1.62527978,575.05,573.79,0.983]
[1741031925137,1.62527978,574.92,573.79,0.983]
[1741031925334,0.32047044,574.91,573.79,1.805]
[1741031925635,0.32057778,574.9,573.79,1.805]
[1741031925840,0.34789869,574.88,573.79,1.805]
[1741031926136,0.32057778,574.87,573.79,1.805]
[1741031926336,0.32057778,574.86,573.79,1.805]
[1741031926542,0.32057778,574.85,573.79,1.805]
[1741031926741,0.32057778,574.84,573.79,1.805]
[1741031926941,0.32057778,574.83,573.79,1.805]
[1741031927139,0.32057778,574.82,573.79,1.805]
[1741031927536,1.81950478,574.87,573.79,1.805]
[1741031927838,1.62527978,574.85,573.79,1.805]
[1741031928042,0.32051104,574.84,573.79,1.805]
[1741031928237,0.32051104,574.83,573.79,1.805]
[1741031928445,0.32051104,574.82,573.79,1.805]
[1741031928637,2.41455114,574.85,573.79,1.805]
[1741031928638,0.32051104,574.84,573.79,1.805]
[1741031928837,0.32051104,574.81,573.79,1.805]
[1741031929039,0.32051104,574.8,573.79,1.805]
[1741031929237,0.32051104,574.83,573.79,1.805]
[1741031929446,1.81916395,574.8,573.79,1.805]
[1741031929739,0.32051104,574.79,573.79,1.805]
[1741031930144,1.81916395,574.8,573.79,1.805]
[1741031930344,0.32033205,574.79,573.79,1.805]
[1741031931543,0.32033205,574.78,573.79,1.805]
[1741031931846,1.81916395,574.8,573.79,1.805]
[1741031932051,0.32039325,574.79,573.79,1.877]
[1741031932249,0.32039325,574.85,573.79,1.877]
[1741031932452,0.32039325,574.78,573.79,1.877]
[1741031932653,1.81907678,574.79,573.79,1.877]
[1741031932855,0.32039325,574.78,573.79,1.877]
[1741031933251,1.278,574.77,573.79,1.877]
[1741031933449,1.59831774,574.77,573.79,1.877]
[1741031933756,0.32031774,574.76,573.79,1.877]
[1741031934054,0.32031774,574.75,573.79,1.877]
[1741031934255,0.32031774,574.74,573.79,1.877]
[1741031934454,0.32031774,574.73,573.79,1.877]
[1741031934650,0.32031774,574.72,573.79,1.877]
[1741031934957,0.3204537,574.71,573.79,1.877]
[1741031935157,0.3204537,574.76,573.79,1.877]
[1741031935354,1.81921943,574.71,573.79,1.877]
[1741031935554,0.3204537,574.7,573.79,1.877]
[1741031938058,0.3204537,574.69,573.79,1.877]
[1741031938254,0.3204537,574.68,573.79,1.877]
[1741031938461,0.3204537,574.67,573.79,1.877]
[1741031938661,0.3204537,574.68,573.79,1.877]
[1741031938953,0.3204537,574.67,573.79,1.877]
[1741031939156,1.81955234,574.69,573.79,1.877]
[1741031939157,0.3204537,574.66,573.79,1.877]
[1741031939359,0.3204537,574.65,573.79,1.877]
[1741031939551,0.3204537,574.64,573.79,1.877]
[1741031939754,0.3204537,574.63,573.79,1.877]
[1741031939960,0.3204537,574.62,573.79,1.877]
[1741031940159,0.3204537,574.68,573.79,1.877]
[1741031940354,0.3204537,574.67,573.79,1.877]
[1741031940558,0.3204537,574.68,573.79,1.877]
[1741031940754,1.81955234,574.69,573.79,1.877]
[1741031940956,0.32053513,574.68,573.79,1.877]
[1741031941361,0.32053513,574.67,573.79,1.877]
[1741031941756,0.32053513,574.66,573.79,1.877]
[1741031941961,0.32053513,574.65,573.79,1.877]
[1741031942263,0.32053513,574.64,573.79,1.877]
[1741031942661,0.32053513,574.63,573.79,1.055]
[1741031942862,0.32053513,574.62,573.79,0.072]
[1741031943059,0.32053513,574.61,573.79,0.072]
[1741031943263,1.62857348,574.59,573.79,0.072]
[1741031943461,1.94910861,574.58,573.79,0.072]
[1741031943662,1.63071339,574.52,573.79,0.072]
[1741031944059,0.32053513,574.51,573.79,0.072]
[1741031944364,1.94910861,574.5,573.79,0.072]
[1741031944558,1.63071339,574.48,573.79,0.072]
[1741031944759,0.32053513,574.47,573.79,0.072]
[1741031945158,1.62857348,574.22,571.17,1.25038166]
[1741031945363,0.99077758,574.21,571.18,0.29966663]
[1741031945658,0.99077758,574.21,571.17,1.25038166]
[1741031945659,0.99077758,574.2,571.19,0.29966663]
[1741031945859,0.321147,574.19,571.2,0.29966663]
[1741031946066,0.321147,574.18,571.21,0.29966663]
[1741031946266,0.321147,574.24,571.22,0.29966663]
[1741031946462,0.321147,574.17,571.23,0.29966663]
[1741031946658,0.321147,574.16,571.24,0.29966663]
[1741031947067,0.321147,574.15,571.25,0.29966663]
[1741031947359,0.321147,574.49,571.26,0.29966663]
[1741031947567,0.321147,574.48,571.27,0.29966663]
[1741031947766,0.321147,574.47,571.28,0.29966663]
[1741031948265,0.321147,574.46,571.29,0.29966663]
[1741031948465,0.321147,574.45,571.3,0.29966663]
[1741031948763,0.99077758,574.44,571.31,0.29966663]
[1741031949066,0.321147,574.43,571.32,0.29966663]
[1741031949267,0.321147,574.43,571.2,0.849]
[1741031949268,0.321147,574.42,571.33,0.29966663]
[1741031949566,0.321147,574.41,571.34,0.29966663]
[1741031949764,1.63071339,574.42,571.2,0.849]
[1741031950064,0.3210099,574.41,571.21,0.30298316]
[1741031950268,0.3210099,574.4,571.22,0.30298316]
[1741031950462,0.3210099,574.39,571.23,0.30298316]
[1741031950667,0.3210099,574.38,571.24,0.30298316]
[1741031950967,0.3210099,574.37,571.25,0.30298316]
[1741031951165,0.3210099,574.36,571.26,0.30298316]
[1741031951562,0.3210099,574.5,571.27,0.30298316]
[1741031951769,0.3210099,574.49,571.28,0.30298316]
[1741031952074,0.3210099,574.48,571.29,0.30298316]
[1741031952265,0.3210099,574.47,571.3,0.30298316]
[1741031952462,0.3210099,574.46,571.31,0.30298316]
[1741031952670,0.3210099,574.45,571.32,0.30298316]
[1741031952967,2.77120613,574.74,571.3,1.82232346]
[1741031953169,0.32077003,574.5,571.31,0.30274558]
[1741031953368,0.32077003,574.5,571.32,0.30274558]
[1741031953670,0.32077003,574.5,571.33,0.30274558]
[1741031953968,0.32077003,574.49,571.34,0.30274558]
[1741031954170,0.32077003,574.48,571.35,0.30274558]
[1741031954365,0.32077003,574.47,571.36,0.30274558]
[1741031954569,0.32077003,574.5,571.37,0.30274558]
[1741031954761,0.32077003,574.46,571.38,0.30274558]
[1741031954966,0.32077003,574.49,571.39,0.30274558]
[1741031955164,0.32077003,574.48,571.4,0.30274558]
[1741031955367,0.32077003,574.47,571.41,0.30274558]
[1741031955569,0.32077003,574.47,571.42,0.30274558]
[1741031955769,0.32077003,574.46,571.43,0.30274558]
[1741031955967,0.32077003,574.46,571.44,0.30274558]
[1741031956267,2.1433687,574.45,571.45,0.30274242]
[1741031956571,0.32076687,574.44,571.46,0.30274242]
[1741031956772,0.32076687,574.43,571.61,1.25038166]
[1741031956968,1.82260183,574.45,571.61,1.25038166]
[1741031956969,0.32076687,574.42,571.62,0.30274242]
[1741031957269,0.32076687,574.41,571.63,0.30274242]
[1741031957465,0.32076687,574.4,571.64,0.30274242]
[1741031957669,1.82260183,574.45,571.61,1.25038166]
[1741031957670,0.32076687,574.39,571.62,0.30274242]
[1741031957869,1.61374782,574.37,571.65,0.30274242]
[1741031958071,0.98574236,574.36,571.66,0.30274242]
[1741031958273,1.63071339,574.32,571.67,0.30274242]
[1741031958571,0.32076687,574.31,571.68,0.30274242]
[1741031958767,1.95148026,574.3,571.62,0.30274242]
[1741031958970,0.32076687,574.29,571.63,0.30274242]
[1741031959274,1.61374782,574.24,571.64,0.30274242]
[1741031959472,1.28576197,574.28,571.64,0.30274242]
[1741031959473,1.61374782,574.18,571.64,0.30274242]
[1741031959674,1.63071339,574.16,571.65,0.30274242]
[1741031959873,0.32076687,574.15,571.21,0.30274242]
[1741031960073,0.98574236,574.14,571.22,0.30274242]
[1741031960268,0.32076687,574.13,571.23,0.30274242]
[1741031960472,0.32076687,574.13,571.24,0.30274242]
[1741031960668,0.32076687,574.13,571.25,0.30274242]
[1741031960869,0.32076687,574.12,571.25,0.30274242]
[1741031961067,0.32076687,574.11,571.26,1.12074242]
[1741031961269,0.32076687,574.1,571.27,0.30274242]
[1741031961471,0.32076687,574.13,571.28,0.30274242]
[1741031961673,0.32076687,574.12,571.29,0.30274242]
[1741031961867,0.32076687,574.13,571.3,0.30274242]
[1741031962071,0.32076687,574.11,571.3,0.30274242]
[1741031962271,0.997,574.14,571.26,0.818]
[1741031962467,0.32078226,574.13,571.27,0.30275788]
[1741031962668,0.32078226,574.12,571.28,0.30275788]
[1741031962874,0.32078226,574.11,571.29,0.30275788]
[1741031963178,0.997,574.14,571.49,1.25038166]
[1741031963179,0.32078226,574.1,571.49,1.25038166]
[1741031963474,0.32078226,574.09,571.5,0.30275788]
[1741031963666,0.32078226,574.08,571.51,0.30275788]
[1741031963868,0.997,574.14,571.49,1.25038166]
[1741031964073,0.32093799,574.07,571.52,0.3029122]
[1741031964271,0.32093799,574.13,571.52,0.3029122]
[1741031964472,0.32093799,574.06,571.53,0.3029122]
[1741031964668,0.997,574.14,571.49,1.25038166]
[1741031964669,0.32093799,574.05,571.54,0.3029122]
[1741031964869,0.32093799,574.04,571.55,0.3029122]
[1741031965174,0.32093799,574.03,571.56,0.3029122]
[1741031965375,1.82302353,574.03,571.49,1.25038166]
[1741031965572,0.32091222,574.02,571.5,0.30288622]
[1741031965775,0.32091222,574.01,571.52,0.349944]
[1741031965978,0.34849276,573.9,571.53,0.30288622]
[1741031966171,0.32091222,573.89,571.54,0.30288622]
[1741031966371,0.32091222,573.88,571.55,0.30288622]
[1741031966572,0.32091222,573.87,571.56,0.30288622]
[1741031966775,0.32091222,573.86,571.57,0.30288622]
[1741031966977,0.32089805,573.85,571.58,0.30287231]
[1741031967172,0.32089805,573.89,571.59,0.30287231]
[1741031967377,0.32089805,573.88,571.6,0.30287231]
[1741031967572,0.32089805,573.89,571.61,0.30287231]
[1741031967877,0.32089805,573.88,571.62,0.30287231]
[1741031968074,0.32089805,573.89,571.63,0.30287231]
[1741031968276,0.32089805,573.88,571.64,0.30287231]
[1741031968476,1.82320659,573.87,571.64,0.30287231]
[1741031968773,0.32089805,573.86,571.65,0.30287231]
[1741031969080,0.32089805,573.86,571.66,0.30287231]
[1741031969272,0.32089805,573.86,571.67,0.30287231]
[1741031969473,0.32089805,573.86,571.68,0.30287231]
[1741031969674,0.32089805,573.86,571.69,0.30287231]
[1741031969980,0.32089805,573.86,571.7,0.30287231]
[1741031970176,0.32089805,573.86,571.71,0.30287231]
[1741031970381,0.32089805,573.86,571.72,0.30287231]
[1741031970576,0.32089805,573.86,571.73,0.30287231]
[1741031970777,0.32089805,573.86,571.74,0.30287231]
[1741031970978,0.32089805,573.86,571.75,0.30287231]
[1741031971277,0.32089805,573.86,571.76,0.30287231]
[1741031971484,1.82329415,573.85,571.52,0.349944]
[1741031971783,0.32093635,573.84,571.53,0.30291032]
[1741031972081,0.32093635,573.84,571.54,0.30291032]
[1741031972285,0.32093635,573.84,571.55,0.30291032]
[1741031972582,1.37604339,573.84,571.56,0.30291032]
[1741031972783,0.32093635,573.83,571.57,0.30291032]
[1741031972983,4.44563053,573.84,571.58,0.30291032]
[1741031973177,2.0667896,573.83,571.59,0.30291032]
[1741031973380,0.32093635,573.82,571.6,0.30291032]
[1741031973577,0.32093635,573.82,571.61,0.30291032]
[1741031973781,4.8118113,573.82,571.62,0.30291032]
[1741031973977,3.12248267,573.81,571.63,0.30291032]
[1741031974176,0.32093635,573.8,571.64,0.30291032]
[1741031974381,1.3185188,573.8,571.65,0.30291032]
[1741031974578,1.3185188,573.8,571.66,0.30291032]
[1741031974579,0.32093635,573.79,571.66,0.30291032]
[1741031974778,5.91841885,573.79,571.75,1.25038166]